bitfinex/quotes_BTCUSD_20241111
["timestamp","ask_amount","ask_price","bid_price","bid_amount"]
[1731305389511,0.21332605,80869.0,80868.0,0.205587]
[1731305389908,0.21332605,80869.0,80868.0,0.199767]
[1731305390574,0.21332605,80869.0,80868.0,0.000841]
[1731305390811,0.52295289,80869.0,80868.0,0.000841]
[1731305391017,0.52295289,80869.0,80852.0,0.18637592]
[1731305391018,0.197858,80866.0,80861.0,0.18637592]
[1731305391231,0.023,80867.0,80863.0,0.18637592]
[1731305391441,0.098931,80864.0,80858.0,0.098938]
[1731305391653,0.18570184,80860.0,80858.0,0.098938]
[1731305392066,0.18570184,80860.0,80853.0,0.197889]
[1731305392235,0.18570184,80860.0,80853.0,0.203709]
[1731305392580,0.18570184,80860.0,80855.0,0.197885]
[1731305392773,0.18570184,80860.0,80853.0,0.00582]
[1731305392970,0.12594221,80858.0,80857.0,0.09894]
[1731305394494,0.12594221,80858.0,80852.0,0.18637592]
[1731305394676,0.12594221,80858.0,80857.0,0.09894]
[1731305394874,0.31164405,80858.0,80857.0,0.09894]
[1731305395075,0.31164405,80858.0,80857.0,0.08644]
[1731305395316,0.31164405,80858.0,80856.0,0.098941]
[1731305395490,0.31164405,80858.0,80854.0,0.197887]
[1731305395695,0.12594221,80856.0,80847.0,0.20775467]
[1731305395899,0.18570184,80848.0,80847.0,0.098952]
[1731305396133,0.18570184,80848.0,80847.0,0.204772]
[1731305396134,0.31164405,80848.0,80847.0,0.204772]
[1731305396322,0.31164405,80848.0,80847.0,0.198952]
[1731305397586,0.31164405,80848.0,80842.0,0.1]
[1731305397816,0.31164405,80848.0,80841.0,0.000841]
[1731305397817,0.12594221,80845.0,80841.0,0.000841]
[1731305398046,0.18570184,80842.0,80841.0,0.0998]
[1731305398241,0.18570184,80842.0,80841.0,0.10562]
[1731305399844,0.31164405,80842.0,80841.0,0.10562]
[1731305400818,0.12594221,80842.0,80841.0,0.10562]
[1731305402749,0.07594221,80842.0,80841.0,0.10562]
[1731305405975,0.00970592,80856.0,80841.0,0.23112]
[1731305406180,0.001682,80869.0,80868.0,0.098926]
[1731305406494,0.001682,80869.0,80868.0,0.203926]
[1731305406697,0.001682,80869.0,80868.0,0.208926]
[1731305406995,0.000701,80893.0,80887.0,0.098903]
[1731305407133,0.18570184,80890.0,80887.0,0.098903]
[1731305407349,0.12762421,80888.0,80887.0,0.098903]
[1731305410336,0.12762421,80888.0,80881.0,0.1]
[1731305410586,0.12594221,80882.0,80881.0,0.20473]
[1731305410773,0.12594221,80882.0,80881.0,0.10473]
[1731305413830,0.12594221,80882.0,80881.0,0.09473]
[1731305414446,0.12762421,80882.0,80881.0,0.09473]
[1731305415328,0.12762421,80882.0,80881.0,0.21838754]
[1731305415976,0.12762421,80882.0,80881.0,0.29538754]
[1731305416850,0.12762421,80882.0,80881.0,0.21838754]
[1731305418873,0.22653321,80882.0,80881.0,0.10415083]
[1731305419127,0.22653321,80882.0,80858.0,0.0765]
[1731305419128,0.002,80869.0,80858.0,0.0765]
[1731305419330,0.002,80869.0,80848.0,0.005]
[1731305419331,0.22686721,80869.0,80855.0,0.197884]
[1731305419528,0.22686721,80869.0,80852.0,0.38426592]
[1731305419529,0.41056905,80869.0,80856.0,0.19788]
[1731305419660,0.21922935,80869.0,80852.0,0.38426592]
[1731305419859,0.21922935,80869.0,80852.0,0.38426692]
[1731305419860,0.023,80862.0,80852.0,0.38426692]
[1731305420104,0.18570184,80860.0,80852.0,0.18637592]
[1731305420262,0.121934,80862.0,80854.0,0.098943]
[1731305420479,0.18570184,80855.0,80852.0,0.29053592]
[1731305420689,0.18570184,80855.0,80854.0,0.098943]
[1731305421166,0.18570184,80855.0,80851.0,0.098947]
[1731305421325,0.18570184,80855.0,80849.0,0.098949]
[1731305421561,0.18570184,80855.0,80845.0,0.197909]
[1731305421749,0.12594221,80853.0,80852.0,0.098946]
[1731305422835,0.12188451,80853.0,80852.0,0.098946]
[1731305425961,0.30758635,80853.0,80852.0,0.203106]
[1731305426316,0.30926835,80853.0,80852.0,0.098946]
[1731305427351,0.12356651,80853.0,80852.0,0.098946]
[1731305431395,0.12356651,80853.0,80852.0,0.203106]
[1731305432343,0.12356651,80853.0,80852.0,0.098946]
[1731305434759,0.12356651,80853.0,80852.0,0.203106]
[1731305435588,0.12356651,80853.0,80852.0,0.20265869]
[1731305435807,0.12356651,80853.0,80852.0,0.38275869]
[1731305436016,0.001682,80853.0,80852.0,0.43785869]
[1731305438286,0.001682,80853.0,80852.0,0.43870069]
[1731305439367,0.001682,80853.0,80852.0,0.43370069]
[1731305439572,0.31332605,80853.0,80852.0,0.28360069]
[1731305439777,0.12762421,80853.0,80852.0,0.28860069]
[1731305441157,0.12762421,80853.0,80852.0,0.38860069]
[1731305442770,0.12762421,80853.0,80852.0,0.38360069]
[1731305442985,0.12762421,80853.0,80852.0,0.38860069]
[1731305445356,0.001682,80853.0,80852.0,0.39360069]
[1731305445586,0.001682,80853.0,80852.0,0.44170069]
[1731305446275,0.001682,80853.0,80852.0,0.48010953]
[1731305446483,0.001682,80853.0,80852.0,0.48010962]
[1731305446925,0.001682,80853.0,80852.0,0.44170069]
[1731305447505,0.001682,80853.0,80852.0,0.480119]
[1731305450807,0.001682,80853.0,80852.0,0.44170069]
[1731305453244,4.08e-05,80853.0,80852.0,0.44170069]
[1731305457594,0.14863255,80876.0,80875.0,0.098918]
[1731305457802,0.27457476,80876.0,80875.0,0.098918]
[1731305458798,0.28226513,80876.0,80875.0,0.098918]
[1731305461748,0.28226513,80876.0,80859.0,0.005]
[1731305461749,0.002,80874.0,80859.0,0.005]
[1731305461960,0.18570184,80864.0,80863.0,0.49120792]
[1731305462184,0.31164405,80864.0,80863.0,0.49120792]
[1731305462394,0.31164405,80864.0,80863.0,0.31239807]
[1731305462738,0.31164405,80864.0,80863.0,0.21239807]
[1731305463145,0.31164405,80864.0,80855.0,0.005]
[1731305463146,0.54434589,80864.0,80852.0,0.000842]
[1731305463378,0.12594221,80855.0,80853.0,0.18637592]
[1731305463599,0.18570184,80854.0,80853.0,0.18637592]
[1731305463807,0.18570184,80854.0,80852.0,0.000842]
[1731305463808,0.33466972,80854.0,80852.0,0.000842]
[1731305464021,0.14896788,80853.0,80852.0,0.000842]
[1731305464486,0.22786788,80853.0,80852.0,0.000842]
[1731305465575,0.32681188,80853.0,80852.0,0.000842]
[1731305465989,0.34981188,80853.0,80852.0,0.000842]
[1731305466234,0.32678621,80853.0,80852.0,0.000842]
[1731305466443,0.34979736,80853.0,80852.0,0.000842]
[1731305466858,0.44292308,80853.0,80852.0,0.000842]
[1731305467267,0.44292308,80853.0,80833.0,0.18637592]
[1731305467268,0.023,80852.0,80833.0,0.18637592]
[1731305467479,0.18570184,80842.0,80841.0,0.12452302]
[1731305467691,0.18570184,80842.0,80841.0,0.22348202]
[1731305468111,0.18570184,80842.0,80831.0,0.197941]
[1731305468112,0.44050368,80842.0,80813.0,0.04193781]
[1731305468336,0.44050368,80842.0,80803.0,0.14180553]
[1731305468337,0.18570184,80820.0,80807.0,0.005]
[1731305468546,0.18570184,80814.0,80813.0,0.098993]
[1731305468983,0.31164405,80814.0,80813.0,0.098993]
[1731305469221,0.31164405,80814.0,80812.0,0.098994]
[1731305469473,0.12594221,80813.0,80812.0,0.098995]
[1731305473002,0.12594221,80813.0,80812.0,0.22767702]
[1731305473215,0.18570184,80828.0,80812.0,0.22767702]
[1731305473216,0.18570184,80828.0,80827.0,0.098976]
[1731305473462,0.31164405,80828.0,80827.0,0.098976]
[1731305478259,0.12594221,80828.0,80827.0,0.098976]
[1731305478568,0.18570184,80845.0,80844.0,0.098956]
[1731305478774,0.31164405,80845.0,80844.0,0.098956]
[1731305478958,0.12594221,80845.0,80844.0,0.098956]
[1731305479135,0.19256362,80863.0,80844.0,0.098956]
[1731305479136,0.19256362,80863.0,80844.0,0.105]
[1731305479423,0.18637592,80863.0,80862.0,0.098933]
[1731305479613,0.37207776,80863.0,80862.0,0.098933]
[1731305479808,0.18570184,80863.0,80862.0,0.098933]
[1731305480185,0.001684,80876.0,80858.0,0.197875]
[1731305480186,0.18570184,80870.0,80869.0,0.098925]
[1731305480410,0.001684,80876.0,80875.0,0.098918]
[1731305480628,0.31332805,80876.0,80875.0,0.098918]
[1731305480832,0.31939376,80876.0,80875.0,0.098918]
[1731305481061,0.31332805,80876.0,80875.0,0.098918]
[1731305481950,0.12762621,80876.0,80875.0,0.098918]
[1731305482994,0.12762621,80876.0,80875.0,0.11025441]
[1731305483765,0.31332805,80876.0,80875.0,0.11025441]
[1731305484230,0.31332805,80876.0,80875.0,0.098918]
[1731305484441,0.34482906,80876.0,80875.0,0.098918]
[1731305484572,0.31332805,80876.0,80875.0,0.098918]
[1731305486849,0.31332805,80876.0,80867.0,0.1]
[1731305487067,0.12594221,80873.0,80868.0,0.197853]
[1731305487280,0.12594221,80873.0,80872.0,0.098921]
[1731305487505,0.12594221,80873.0,80868.0,0.32153502]
[1731305487715,0.18738584,80876.0,80862.0,0.197866]
[1731305487716,0.31164405,80869.0,80862.0,0.197866]
[1731305487934,0.18570184,80863.0,80853.0,0.18637592]
[1731305488139,0.18570184,80856.0,80855.0,0.098942]
[1731305489200,0.31164405,80856.0,80855.0,0.098942]
[1731305491696,0.31164405,80856.0,80843.0,0.0789]
[1731305491697,0.002,80852.0,80837.0,0.197929]
[1731305491920,0.34280846,80856.0,80847.0,0.098952]
[1731305491921,0.12594221,80848.0,80847.0,0.098952]
[1731305492124,0.12594221,80848.0,80847.0,0.22263402]
[1731305492832,0.13853643,80848.0,80847.0,0.22263402]
[1731305493008,0.12594221,80848.0,80847.0,0.22263402]
[1731305493262,0.12594221,80848.0,80847.0,0.098952]
[1731305493461,0.31164405,80848.0,80847.0,0.098952]
[1731305495553,0.31164405,80848.0,80845.0,0.098954]
[1731305495760,0.31164405,80848.0,80831.0,0.29742749]
[1731305495761,0.12594221,80846.0,80831.0,0.29242749]
[1731305495933,0.18570184,80833.0,80831.0,0.31005794]
[1731305496272,0.18570184,80833.0,80832.0,0.296911]
[1731305496964,0.31164405,80833.0,80832.0,0.296911]
[1731305498646,0.31781254,80833.0,80832.0,0.296911]
[1731305499194,0.12594221,80833.0,80832.0,0.296911]
[1731305500429,0.12594221,80833.0,80832.0,0.297753]
[1731305502445,0.001684,80852.0,80839.0,0.005]
[1731305502724,0.18637592,80840.0,80839.0,0.098962]
[1731305502886,0.18637592,80840.0,80833.0,0.202938]
[1731305502887,0.12594221,80840.0,80837.0,0.197929]
[1731305503090,0.12594221,80839.0,80838.0,0.098963]
[1731305503717,0.15710662,80839.0,80838.0,0.098963]
[1731305503916,0.12594221,80839.0,80838.0,0.098963]
[1731305509984,0.12594221,80839.0,80838.0,0.230363]
[1731305511448,0.12594221,80839.0,80838.0,0.179663]
[1731305511833,0.12594221,80839.0,80838.0,0.103963]
[1731305512478,0.00605236,80851.0,80850.0,0.098948]
[1731305512839,0.12594221,80851.0,80850.0,0.098948]
[1731305513531,0.12594221,80851.0,80849.0,0.26827592]
[1731305513532,0.001684,80852.0,80851.0,0.005]
[1731305513750,0.001684,80852.0,80851.0,0.103947]
[1731305513966,0.001684,80852.0,80851.0,0.22762902]
[1731305514427,0.001684,80852.0,80851.0,0.33262902]
[1731305515608,0.001684,80852.0,80851.0,0.33871211]
[1731305519971,0.12762621,80852.0,80851.0,0.33871211]
[1731305521982,0.001684,80852.0,80851.0,0.33871211]
[1731305529989,1e-06,80852.0,80851.0,0.33871211]
[1731305530196,1e-06,80852.0,80851.0,0.42261211]
[1731305531892,1e-06,80852.0,80851.0,0.41761211]
[1731305532355,1e-06,80852.0,80851.0,0.31761211]
[1731305533425,1e-06,80852.0,80851.0,0.41761211]
[1731305535352,1e-06,80852.0,80851.0,0.41261211]
[1731305535557,1e-06,80852.0,80851.0,0.41761211]
[1731305543737,1e-06,80852.0,80851.0,0.45610461]
[1731305546583,1e-06,80852.0,80851.0,0.45110461]
[1731305546787,1e-06,80852.0,80851.0,0.45610461]
[1731305548599,1e-06,80852.0,80851.0,0.46110461]
[1731305549483,1e-06,80852.0,80851.0,0.46194661]
[1731305550564,1e-06,80852.0,80851.0,0.49883004]
[1731305551597,1e-06,80852.0,80851.0,0.46894661]
[1731305552983,0.001684,80876.0,80870.0,0.291024]
[1731305553190,0.001684,80876.0,80875.0,0.208918]
[1731305553398,0.001684,80876.0,80875.0,0.2474105]
[1731305555065,0.001684,80876.0,80875.0,0.37109252]
[1731305555928,0.001684,80876.0,80875.0,0.37609252]
[1731305555929,1e-06,80876.0,80875.0,0.37609252]
[1731305556109,1e-06,80876.0,80875.0,0.45819252]
[1731305556562,1e-06,80876.0,80875.0,0.49507613]
[1731305556778,1e-06,80876.0,80875.0,0.45819252]
[1731305556981,1e-06,80876.0,80875.0,0.49507975]
[1731305557402,1e-06,80876.0,80875.0,0.45319252]
[1731305557616,1e-06,80876.0,80875.0,0.45819252]
[1731305559088,1e-06,80876.0,80875.0,0.46451371]
[1731305559500,1e-06,80876.0,80875.0,0.42602121]
[1731305559711,1e-06,80876.0,80875.0,0.46442393]
[1731305560130,1e-06,80876.0,80875.0,0.42602121]
[1731305560951,1e-06,80876.0,80875.0,0.42102121]
[1731305561587,1e-06,80876.0,80875.0,0.41602121]
[1731305561814,1e-06,80876.0,80875.0,0.42102121]
[1731305565797,1e-06,80876.0,80875.0,0.45939761]
[1731305567445,1e-06,80876.0,80875.0,0.42102121]
[1731305567641,1e-06,80876.0,80875.0,0.42602121]
[1731305572369,0.16529332,80899.0,80898.0,0.098889]
[1731305572596,0.29123553,80899.0,80898.0,0.098889]
[1731305572743,0.12594221,80899.0,80898.0,0.098889]
[1731305574492,0.12594221,80899.0,80898.0,0.208889]
[1731305574695,0.18637592,80917.0,80912.0,0.098872]
[1731305574935,0.12602221,80913.0,80912.0,0.098872]
[1731305575140,0.12602221,80913.0,80912.0,0.103872]
[1731305575551,0.12602221,80913.0,80912.0,0.222372]
[1731305576762,0.12602221,80913.0,80912.0,0.217372]
[1731305577561,0.31172405,80913.0,80912.0,0.217372]
[1731305577773,0.12602221,80913.0,80912.0,0.098872]
[1731305577975,0.12602221,80913.0,80912.0,0.093872]
[1731305579126,8e-05,80913.0,80912.0,0.335072]
[1731305579340,1e-06,80913.0,80912.0,0.335072]
[1731305579714,0.0007,80920.0,80919.0,0.103864]
[1731305579910,0.0007,80920.0,80919.0,0.327364]
[1731305581832,0.12664221,80920.0,80919.0,0.327364]
[1731305582007,0.12664221,80920.0,80919.0,0.322364]
[1731305582205,0.12664221,80920.0,80919.0,0.327364]
[1731305582628,0.12664221,80920.0,80919.0,0.317364]
[1731305582831,0.12664221,80920.0,80919.0,0.217364]
[1731305583048,0.12664221,80920.0,80919.0,0.098864]
[1731305584753,0.12664221,80920.0,80919.0,0.208864]
[1731305584958,0.12664221,80920.0,80919.0,0.327364]
[1731305585138,0.12664221,80920.0,80919.0,0.322364]
[1731305585339,0.12664221,80920.0,80919.0,0.203864]
[1731305587285,0.12664221,80920.0,80919.0,0.208864]
[1731305587796,0.08164221,80920.0,80919.0,0.208864]
[1731305592008,0.08164221,80920.0,80919.0,0.098864]
[1731305594899,0.08164221,80920.0,80913.0,0.000841]
[1731305595094,0.31164405,80914.0,80913.0,0.000841]
[1731305595309,0.31164405,80914.0,80913.0,0.099712]
[1731305595310,0.35924405,80914.0,80913.0,0.099712]
[1731305595510,0.35924405,80914.0,80913.0,0.000841]
[1731305595942,0.38229777,80914.0,80913.0,0.000841]
[1731305596372,0.38229777,80914.0,80913.0,0.099712]
[1731305596563,0.38229777,80914.0,80913.0,0.000841]
[1731305596939,0.38229777,80914.0,80913.0,0.099712]
[1731305597332,0.35924405,80914.0,80913.0,0.000841]
[1731305597601,0.4613679,80914.0,80913.0,0.000841]
[1731305597826,0.18570184,80895.0,80894.0,0.19244469]
[1731305598031,0.31164405,80895.0,80894.0,0.19244469]
[1731305598234,0.43360074,80895.0,80894.0,0.00606877]
[1731305598588,0.002,80893.0,80881.0,0.19782]
[1731305598895,0.002,80893.0,80879.0,0.18637592]
[1731305598896,0.31164405,80882.0,80879.0,0.18637592]
[1731305598993,0.22485321,80880.0,80879.0,0.18637592]
[1731305599206,0.12594221,80880.0,80879.0,0.18637592]
[1731305599544,0.12594221,80880.0,80877.0,0.098914]
[1731305599758,0.31164405,80878.0,80877.0,0.098914]
[1731305601360,0.31164405,80878.0,80869.0,0.18637592]
[1731305601556,0.31164405,80878.0,80861.0,0.005]
[1731305601557,0.22685821,80876.0,80861.0,0.1]
[1731305601770,0.22685821,80876.0,80866.0,0.098929]
[1731305601969,0.22685821,80876.0,80863.0,0.197864]
[1731305602183,0.22685821,80876.0,80867.0,0.197854]
[1731305602394,0.22685821,80876.0,80869.0,0.098924]
[1731305602795,0.22685821,80876.0,80870.0,0.098923]
[1731305603015,0.12794221,80876.0,80871.0,0.098922]
[1731305603337,0.12594221,80876.0,80871.0,0.098922]
[1731305603548,0.31164405,80876.0,80875.0,0.09976]
[1731305607782,0.12594221,80876.0,80875.0,0.09976]
[1731305608085,0.12594221,80876.0,80875.0,0.10476]
[1731305610582,0.12594221,80876.0,80875.0,0.11090818]
[1731305611809,0.12594221,80876.0,80875.0,0.11590818]
[1731305612030,0.12594221,80876.0,80875.0,0.21590818]
[1731305613525,0.12594221,80876.0,80875.0,0.29460818]
[1731305614260,0.12594221,80876.0,80875.0,0.41310818]
[1731305616087,0.002,80901.0,80875.0,0.41310818]
[1731305616088,0.00185478,80903.0,80902.0,0.098885]
[1731305616345,0.12779699,80903.0,80902.0,0.098885]
[1731305617553,0.12779699,80903.0,80893.0,0.005]
[1731305617554,0.002,80899.0,80875.0,0.000842]
[1731305617760,0.18570184,80892.0,80891.0,0.18637592]
[1731305618004,0.18570184,80892.0,80877.0,0.098915]
[1731305618005,0.002,80886.0,80877.0,0.098915]
[1731305618237,0.296698,80890.0,80878.0,0.197827]
[1731305618419,0.098904,80887.0,80881.0,0.09891]
[1731305618636,0.296706,80888.0,80879.0,0.28528792]
[1731305618788,0.296706,80888.0,80879.0,0.28528892]
[1731305618789,0.18570184,80880.0,80879.0,0.28528892]
[1731305619188,0.31164405,80880.0,80879.0,0.098913]
[1731305622615,0.31793561,80880.0,80879.0,0.098913]
[1731305624220,0.31793561,80880.0,80875.0,0.000842]
[1731305624511,0.31793561,80880.0,80876.0,0.098916]
[1731305624512,0.12594221,80877.0,80876.0,0.098916]
[1731305625534,0.14898619,80877.0,80875.0,0.000842]
[1731305625682,0.12594221,80877.0,80876.0,0.098916]
[1731305625887,0.14898671,80877.0,80876.0,0.098916]
[1731305626094,0.12594221,80877.0,80876.0,0.098916]
[1731305626301,0.14898763,80877.0,80876.0,0.098916]
[1731305626469,0.14899775,80877.0,80876.0,0.098916]
[1731305627068,0.14899775,80877.0,80875.0,0.099759]
[1731305627450,0.02305554,80876.0,80875.0,0.000842]
[1731305627721,0.18591529,80876.0,80875.0,0.09976]
[1731305628351,0.18591529,80876.0,80875.0,0.000842]
[1731305628557,0.18591529,80876.0,80875.0,0.09976]
[1731305632333,0.14899775,80876.0,80875.0,0.09976]
[1731305632819,0.14899775,80876.0,80875.0,0.18096]
[1731305633279,0.14902393,80876.0,80875.0,0.18096]
[1731305633935,0.1859533,80876.0,80875.0,0.09976]
[1731305634869,0.1859533,80876.0,80875.0,0.000842]
[1731305635071,0.2848693,80876.0,80875.0,0.000842]
[1731305635305,0.1859533,80876.0,80875.0,0.000842]
[1731305635519,0.37165514,80876.0,80875.0,0.09976]
[1731305636100,0.37165514,80876.0,80875.0,0.000842]
[1731305636667,0.47257114,80876.0,80875.0,0.000842]
[1731305636864,0.47257114,80876.0,80857.0,0.1]
[1731305636865,0.098932,80864.0,80861.0,0.0814]
[1731305637136,0.28463284,80864.0,80863.0,0.18637592]
[1731305637314,0.28463284,80864.0,80851.0,0.28750592]
[1731305637315,0.18570184,80864.0,80851.0,0.28750592]
[1731305637537,0.05996676,80863.0,80862.0,0.18637592]
[1731305637692,0.02306414,80863.0,80862.0,0.098933]
[1731305637894,0.02306414,80863.0,80860.0,0.005]
[1731305637895,0.02306194,80863.0,80860.0,0.005]
[1731305638104,0.00620317,80874.0,80870.0,0.098924]
[1731305638310,0.05996345,80873.0,80870.0,0.098924]
[1731305638524,0.00620317,80874.0,80870.0,0.098924]
[1731305638525,0.31164405,80871.0,80870.0,0.098924]
[1731305638721,0.3716075,80871.0,80870.0,0.098924]
[1731305640595,0.18590566,80871.0,80870.0,0.098924]
[1731305640874,0.14900388,80871.0,80870.0,0.174824]
[1731305641250,0.12594221,80871.0,80870.0,0.174824]
[1731305643198,0.12594221,80871.0,80870.0,0.179824]
[1731305643475,0.12594221,80871.0,80870.0,0.284824]
[1731305643961,0.12594221,80871.0,80870.0,0.285665]
[1731305645982,0.12594221,80871.0,80870.0,0.280665]
[1731305646433,0.12594221,80871.0,80870.0,0.285665]
[1731305646763,0.12594221,80871.0,80870.0,0.280665]
[1731305647392,0.12594221,80871.0,80870.0,0.285665]
[1731305648198,0.18570184,80889.0,80877.0,0.005]
[1731305648404,0.18637592,80887.0,80881.0,0.005]
[1731305648575,0.18570184,80890.0,80889.0,0.0989]
[1731305650626,0.31164405,80890.0,80889.0,0.0989]
[1731305655834,0.31332805,80890.0,80889.0,0.0989]
[1731305656274,0.12762621,80890.0,80880.0,0.197821]
[1731305656485,0.18570184,80885.0,80882.0,0.18637592]
[1731305656698,0.18570184,80885.0,80884.0,0.098907]
[1731305656907,0.18570184,80885.0,80884.0,0.217407]
[1731305657521,0.31164405,80885.0,80884.0,0.217407]
[1731305657707,0.31164405,80885.0,80884.0,0.1185]
[1731305658135,0.31164405,80885.0,80883.0,0.098907]
[1731305658270,0.12594221,80884.0,80883.0,0.098907]
[1731305667070,0.12762621,80884.0,80883.0,0.098907]
[1731305674401,0.12762621,80884.0,80883.0,0.217407]
[1731305675314,0.12762621,80884.0,80883.0,0.307007]
[1731305675542,0.001684,80884.0,80883.0,0.333807]
[1731305675816,0.001684,80884.0,80883.0,0.37735018]
[1731305676021,0.001684,80884.0,80883.0,0.40930631]
[1731305676222,0.001684,80884.0,80883.0,0.37735018]
[1731305676706,0.12762621,80884.0,80883.0,0.37235018]
[1731305677307,0.12762621,80884.0,80883.0,0.49085018]
[1731305677757,0.12762621,80884.0,80883.0,0.48585018]
[1731305677886,0.12762621,80884.0,80883.0,0.302007]
[1731305678431,0.12762621,80884.0,80883.0,0.183507]
[1731305681588,0.12762621,80884.0,80883.0,0.178507]
[1731305681794,0.12762621,80884.0,80883.0,0.183507]
[1731305682050,0.12762621,80884.0,80875.0,0.000842]
[1731305682230,0.31164405,80876.0,80860.0,0.0816]
[1731305682492,0.31164405,80876.0,80853.0,0.03695613]
[1731305682493,0.100922,80871.0,80867.0,0.18637592]
[1731305682671,0.41882704,80871.0,80867.0,0.18637592]
[1731305682873,0.002,80854.0,80851.0,0.20480592]
[1731305683021,0.28464784,80852.0,80851.0,0.20480592]
[1731305683209,0.41059005,80852.0,80851.0,0.20480592]
[1731305683432,0.41059005,80852.0,80851.0,0.01843]
[1731305684129,0.31164405,80852.0,80851.0,0.01843]
[1731305685218,0.41663353,80852.0,80851.0,0.01843]
[1731305685654,0.48028568,80852.0,80851.0,0.01843]
[1731305685984,0.47828568,80852.0,80851.0,0.01843]
[1731305686978,0.100959,80842.0,80838.0,0.000842]
[1731305687196,0.18570184,80840.0,80838.0,0.000842]
[1731305688464,0.18570184,80840.0,80838.0,0.099804]
[1731305688585,0.18570184,80840.0,80838.0,0.000842]
[1731305689245,0.31164405,80840.0,80838.0,0.000842]
[1731305690964,0.31164405,80840.0,80838.0,0.099805]
[1731305692634,0.31164405,80840.0,80838.0,0.000842]
[1731305693492,0.31164405,80840.0,80838.0,0.099804]
[1731305693717,0.31164405,80840.0,80839.0,0.099804]
[1731305693931,0.31772984,80840.0,80839.0,0.099804]
[1731305695547,0.31164405,80840.0,80839.0,0.099804]
[1731305695730,0.12594221,80840.0,80839.0,0.104804]
[1731305695947,0.12594221,80840.0,80839.0,0.182604]
[1731305696147,0.18668794,80856.0,80839.0,0.336104]
[1731305696348,0.12594221,80855.0,80854.0,0.098943]
[1731305696981,0.12594221,80855.0,80854.0,0.180443]
[1731305697193,0.12594221,80855.0,80854.0,0.185443]
[1731305698186,0.12594221,80855.0,80854.0,0.235143]
[1731305698333,0.12594221,80855.0,80854.0,0.353643]
[1731305698729,0.12594221,80855.0,80854.0,0.453643]
[1731305699688,0.12594221,80855.0,80854.0,0.335143]
[1731305699892,0.18570184,80864.0,80863.0,0.103932]
[1731305700205,0.31164405,80864.0,80863.0,0.103932]
[1731305701301,0.31164405,80864.0,80863.0,0.098932]
[1731305702535,0.31164405,80864.0,80863.0,0.103932]
[1731305702536,0.12594221,80864.0,80863.0,0.103932]
[1731305702847,0.00099,80880.0,80878.0,0.098914]
[1731305702848,0.18570184,80879.0,80878.0,0.098914]
[1731305703086,0.12594221,80879.0,80878.0,0.098914]
[1731305704019,0.12594221,80879.0,80878.0,0.108914]
[1731305704214,0.12594221,80879.0,80878.0,0.188014]
[1731305704870,0.12762621,80879.0,80878.0,0.188014]
[1731305707407,0.12762621,80879.0,80878.0,0.178014]
[1731305707635,0.12762621,80879.0,80875.0,0.005]
[1731305707636,0.12762621,80879.0,80875.0,0.197836]
[1731305707810,0.001684,80879.0,80878.0,0.098914]
[1731305708192,0.001684,80879.0,80872.0,0.26397592]
[1731305708193,0.11569799,80879.0,80867.0,0.197855]
[1731305708396,0.002,80878.0,80868.0,0.18637592]
[1731305708523,0.18570184,80869.0,80868.0,0.18637592]
[1731305708731,0.18570184,80869.0,80857.0,0.0776]
[1731305708972,0.18570184,80869.0,80850.0,0.18637592]
[1731305708973,0.31164405,80860.0,80850.0,0.18637592]
[1731305709117,0.18570184,80869.0,80850.0,0.18637592]
[1731305709118,0.098942,80856.0,80850.0,0.18637592]
[1731305709328,0.197877,80858.0,80850.0,0.18637592]
[1731305709329,0.12594221,80852.0,80850.0,0.18637592]
[1731305709695,0.12594221,80852.0,80843.0,0.197913]
[1731305709696,0.31164405,80852.0,80851.0,0.18721792]
[1731305709893,0.31164405,80852.0,80851.0,0.000842]
[1731305710241,0.46174276,80852.0,80851.0,0.000842]
[1731305710439,0.36279676,80852.0,80851.0,0.000842]
[1731305710646,0.36279676,80852.0,80851.0,0.099789]
[1731305710647,0.31164405,80852.0,80851.0,0.099789]
[1731305711486,0.12594221,80852.0,80851.0,0.099789]
[1731305712963,0.12594221,80852.0,80851.0,0.000842]
[1731305713840,0.22488821,80852.0,80851.0,0.000842]
[1731305714007,0.271107,80852.0,80851.0,0.000842]
[1731305714461,0.273107,80852.0,80851.0,0.000842]
[1731305714811,0.271107,80852.0,80851.0,0.000842]
[1731305715153,0.098958,80842.0,80839.0,0.000842]
[1731305715388,0.09896,80840.0,80839.0,0.000842]
[1731305715596,0.22490221,80840.0,80839.0,0.000842]
[1731305716020,0.12594221,80840.0,80839.0,0.000842]
[1731305717197,0.46175916,80840.0,80839.0,0.000842]
[1731305717402,0.41060405,80840.0,80839.0,0.000842]
[1731305717579,0.22490221,80840.0,80839.0,0.000842]
[1731305717995,0.22690221,80840.0,80839.0,0.000842]
[1731305718189,0.41873342,80840.0,80839.0,0.000842]
[1731305718396,0.41873342,80840.0,80832.0,0.000842]
[1731305718397,0.098969,80833.0,80832.0,0.000842]
[1731305718666,0.41061305,80833.0,80832.0,0.124322]
[1731305718825,0.31164405,80833.0,80832.0,0.000842]
[1731305719022,0.41061305,80833.0,80832.0,0.000842]
[1731305719204,0.31164405,80833.0,80832.0,0.000842]
[1731305720394,0.31164405,80833.0,80832.0,0.099812]
[1731305721058,0.31164405,80833.0,80832.0,0.000842]
[1731305721238,0.44177746,80833.0,80832.0,0.000842]
[1731305721686,0.44377746,80833.0,80832.0,0.000842]
[1731305722282,0.22491121,80833.0,80832.0,0.000842]
[1731305722508,0.14883049,80833.0,80832.0,0.000842]
[1731305722705,0.12594221,80833.0,80832.0,0.000842]
[1731305723530,0.22491121,80833.0,80832.0,0.000842]
[1731305724626,0.12594221,80833.0,80832.0,0.000842]
[1731305725909,0.22491121,80833.0,80832.0,0.000842]
[1731305726571,0.3241287,80833.0,80832.0,0.000842]
[1731305729056,0.22491121,80833.0,80832.0,0.000842]
[1731305731549,0.24778253,80833.0,80832.0,0.000842]
[1731305732386,0.22491121,80833.0,80832.0,0.000842]
[1731305732570,0.24778374,80833.0,80832.0,0.000842]
[1731305733001,0.24778374,80833.0,80827.0,0.000842]
[1731305733002,0.098975,80828.0,80827.0,0.000842]
[1731305733210,0.098975,80828.0,80812.0,0.051742]
[1731305733211,0.098987,80819.0,80812.0,0.005842]
[1731305733478,0.002,80825.0,80812.0,0.005842]
[1731305733479,0.18570184,80816.0,80812.0,0.000842]